[Event "*** Titled Tuesday Blitz"]
[Site "Chess.com"]
[Date "2020.05.26"]
[Round "5"]
[White "Tacticusbd"]
[Black "Leo_C"]
[Result "1-0"]
[WhiteElo "2419"]
[BlackElo "2270"]
[TimeControl "180+1"]
[EndTime "10:54:23 PDT"]
[Termination "Tacticusbd won by resignation"]

1. e4 {[%clk 0:02:59.7]} 1... c5 {[%clk 0:02:59]} 2. b3 {[%clk 0:02:51.3]} 2...
Nc6 {[%clk 0:02:56.9]} 3. Bb2 {[%clk 0:02:49.6]} 3... e5 {[%clk 0:02:57.4]} 4.
Bb5 {[%clk 0:02:45.5]} 4... Nge7 {[%clk 0:02:56.9]} 5. Ne2 {[%clk 0:02:42.5]}
5... a6 {[%clk 0:02:56.4]} 6. Bxc6 {[%clk 0:02:16.9]} 6... Nxc6 {[%clk
0:02:57.3]} 7. O-O {[%clk 0:02:16]} 7... Be7 {[%clk 0:02:50.1]} 8. Nbc3 {[%clk
0:02:15.1]} 8... O-O {[%clk 0:02:49.2]} 9. f4 {[%clk 0:02:15.4]} 9... d6 {[%clk
0:02:49]} 10. f5 {[%clk 0:02:14.3]} 10... Nd4 {[%clk 0:02:40.9]} 11. Ng3 {[%clk
0:02:11.4]} 11... Bd7 {[%clk 0:02:36.9]} 12. Nd5 {[%clk 0:02:07.4]} 12... f6
{[%clk 0:02:35.1]} 13. c3 {[%clk 0:02:04.9]} 13... Nb5 {[%clk 0:02:35]} 14. Ne3
{[%clk 0:02:01.1]} 14... Bc6 {[%clk 0:02:31.5]} 15. Qg4 {[%clk 0:01:24.8]} 15...
Nc7 {[%clk 0:02:26.1]} 16. d4 {[%clk 0:01:08.9]} 16... cxd4 {[%clk 0:02:23.4]}
17. cxd4 {[%clk 0:01:07.2]} 17... exd4 {[%clk 0:02:24.3]} 18. Bxd4 {[%clk
0:01:05.7]} 18... d5 {[%clk 0:02:24.5]} 19. Nh5 {[%clk 0:01:03]} 19... Rf7
{[%clk 0:02:23.7]} 20. e5 {[%clk 0:00:59.6]} 20... Ne8 {[%clk 0:02:03.8]} 21. e6
{[%clk 0:00:54.7]} 21... Rf8 {[%clk 0:02:03.8]} 22. Rac1 {[%clk 0:00:52.1]}
22... Kh8 {[%clk 0:02:02.2]} 23. Rf3 {[%clk 0:00:50.3]} 23... Rg8 {[%clk
0:01:56.6]} 24. Nf4 {[%clk 0:00:47.1]} 24... g5 {[%clk 0:01:40.7]} 25. fxg6
{[%clk 0:00:45.8]} 25... h6 {[%clk 0:01:40.9]} 26. Rh3 {[%clk 0:00:44.4]} 26...
Kg7 {[%clk 0:01:40.4]} 27. Rxh6 {[%clk 0:00:38.9]} 27... Kf8 {[%clk 0:01:41.3]}
28. Rh7 {[%clk 0:00:25.2]} 1-0

[Event "*** Titled Tuesday Blitz"]
[Site "Chess.com"]
[Date "2020.05.26"]
[Round "5"]
[White "RATNAKARAN"]
[Black "Sam_ChessMood"]
[Result "1/2-1/2"]
[WhiteElo "2546"]
[BlackElo "2850"]
[TimeControl "180+1"]
[EndTime "10:54:25 PDT"]
[Termination "Game drawn by repetition"]

1. e4 {[%clk 0:03:00.9]} 1... c5 {[%clk 0:02:59.3]} 2. Nf3 {[%clk 0:03:00.4]}
2... d6 {[%clk 0:02:59.5]} 3. c3 {[%clk 0:02:59.8]} 3... Nf6 {[%clk 0:02:59.3]}
4. h3 {[%clk 0:03:00.1]} 4... g6 {[%clk 0:02:57]} 5. g4 {[%clk 0:02:56.4]} 5...
Bg7 {[%clk 0:02:56.2]} 6. g5 {[%clk 0:02:56.1]} 6... Nh5 {[%clk 0:02:51.1]} 7.
d4 {[%clk 0:02:55.5]} 7... O-O {[%clk 0:02:49.1]} 8. Be2 {[%clk 0:02:54.3]} 8...
e5 {[%clk 0:02:37.6]} 9. dxc5 {[%clk 0:02:53.5]} 9... dxc5 {[%clk 0:02:37.1]}
10. Qxd8 {[%clk 0:02:53.2]} 10... Rxd8 {[%clk 0:02:38]} 11. Be3 {[%clk
0:02:52.5]} 11... b6 {[%clk 0:02:25.1]} 12. Nbd2 {[%clk 0:02:51.3]} 12... Nc6
{[%clk 0:02:16.5]} 13. O-O-O {[%clk 0:02:49.1]} 13... Bb7 {[%clk 0:02:11.3]} 14.
Nc4 {[%clk 0:02:46.2]} 14... Ba6 {[%clk 0:01:58.7]} 15. Rxd8+ {[%clk 0:02:41.5]}
15... Rxd8 {[%clk 0:01:58.2]} 16. Rd1 {[%clk 0:02:41.3]} 16... Rxd1+ {[%clk
0:01:55.5]} 17. Kxd1 {[%clk 0:02:42.2]} 17... Nf4 {[%clk 0:01:53.7]} 18. Bxf4
{[%clk 0:02:40]} 18... exf4 {[%clk 0:01:54.6]} 19. Nd6 {[%clk 0:02:35.3]} 19...
Ne5 {[%clk 0:01:38.7]} 20. Nxe5 {[%clk 0:02:30.9]} 20... Bxe5 {[%clk 0:01:36.6]}
21. Bxa6 {[%clk 0:02:30.3]} 21... Bxd6 {[%clk 0:01:36.7]} 22. Ke2 {[%clk
0:02:29]} 22... Kf8 {[%clk 0:01:31]} 23. Kd3 {[%clk 0:02:10.2]} 23... Ke7 {[%clk
0:01:30]} 24. Bc4 {[%clk 0:02:07.6]} 24... Be5 {[%clk 0:01:28]} 25. Bd5 {[%clk
0:02:05.8]} 25... Bg7 {[%clk 0:01:11.3]} 26. f3 {[%clk 0:02:02.7]} 26... f6
{[%clk 0:01:07.3]} 27. gxf6+ {[%clk 0:02:01.7]} 27... Bxf6 {[%clk 0:01:08.2]}
28. Kc4 {[%clk 0:01:51.4]} 28... Kd6 {[%clk 0:00:54]} 29. Bg8 {[%clk 0:01:50.6]}
29... h6 {[%clk 0:00:53.1]} 30. Bf7 {[%clk 0:01:50.7]} 30... g5 {[%clk
0:00:53.3]} 31. a4 {[%clk 0:01:45.8]} 31... a5 {[%clk 0:00:49.3]} 32. Kb5 {[%clk
0:01:42.1]} 32... Kc7 {[%clk 0:00:49.4]} 33. Bg6 {[%clk 0:01:38.1]} 33... Be5
{[%clk 0:00:48.7]} 34. Kc4 {[%clk 0:01:35.8]} 34... Kd6 {[%clk 0:00:48.1]} 35.
Kb5 {[%clk 0:01:35.6]} 35... Kc7 {[%clk 0:00:48.4]} 36. Kc4 {[%clk 0:01:35.4]}
36... Kd6 {[%clk 0:00:48.7]} 37. Kb5 {[%clk 0:01:35.8]} 37... Kc7 {[%clk
0:00:49]} 1/2-1/2

[Event "*** Titled Tuesday Blitz"]
[Site "Chess.com"]
[Date "2020.05.26"]
[Round "5"]
[White "grunbergmihai"]
[Black "Gurvich_Vitaly"]
[Result "0-1"]
[WhiteElo "2376"]
[BlackElo "2549"]
[TimeControl "180+1"]
[EndTime "10:54:30 PDT"]
[Termination "Gurvich_Vitaly won by resignation"]

1. Nf3 {[%clk 0:03:00.9]} 1... Nf6 {[%clk 0:02:59.6]} 2. c4 {[%clk 0:03:01.2]}
2... g6 {[%clk 0:03:00.5]} 3. g3 {[%clk 0:03:01.1]} 3... Bg7 {[%clk 0:03:01.1]}
4. Bg2 {[%clk 0:03:02]} 4... O-O {[%clk 0:03:01.9]} 5. O-O {[%clk 0:03:02.2]}
5... d6 {[%clk 0:02:55.3]} 6. d4 {[%clk 0:03:02]} 6... Bg4 {[%clk 0:02:52.5]} 7.
Nc3 {[%clk 0:03:01.3]} 7... Nc6 {[%clk 0:02:50]} 8. h3 {[%clk 0:02:51.2]} 8...
Bxf3 {[%clk 0:02:48]} 9. Bxf3 {[%clk 0:02:52]} 9... Nd7 {[%clk 0:02:48.2]} 10.
e3 {[%clk 0:02:48.5]} 10... e5 {[%clk 0:02:48]} 11. d5 {[%clk 0:02:47.9]} 11...
Ncb8 {[%clk 0:02:46.9]} 12. Bg2 {[%clk 0:02:47.1]} 12... f5 {[%clk 0:02:40.7]}
13. Qc2 {[%clk 0:02:46.1]} 13... e4 {[%clk 0:02:37.8]} 14. Ne2 {[%clk
0:02:41.9]} 14... a5 {[%clk 0:02:37]} 15. Nf4 {[%clk 0:02:36.1]} 15... Nc5
{[%clk 0:02:35.8]} 16. h4 {[%clk 0:02:34.3]} 16... Nbd7 {[%clk 0:02:35]} 17. Bd2
{[%clk 0:02:33.6]} 17... Qe7 {[%clk 0:02:32.1]} 18. Bc3 {[%clk 0:02:30.3]} 18...
Bxc3 {[%clk 0:02:25.2]} 19. Qxc3 {[%clk 0:02:29.7]} 19... Ne5 {[%clk 0:02:25.7]}
20. b3 {[%clk 0:02:25.9]} 20... h6 {[%clk 0:02:25.1]} 21. Rfd1 {[%clk
0:02:13.1]} 21... g5 {[%clk 0:02:24.7]} 22. hxg5 {[%clk 0:02:12.5]} 22... hxg5
{[%clk 0:02:25.6]} 23. Ne2 {[%clk 0:02:12.9]} 23... Nf3+ {[%clk 0:02:00.3]} 24.
Bxf3 {[%clk 0:02:11.3]} 24... exf3 {[%clk 0:02:01.2]} 25. Nd4 {[%clk 0:02:09.1]}
25... g4 {[%clk 0:02:01.2]} 26. Ne6 {[%clk 0:01:34.6]} 26... Qh7 {[%clk
0:01:48.3]} 27. Nf4 {[%clk 0:01:24.5]} 27... Ne4 {[%clk 0:01:39.1]} 28. Qd3
{[%clk 0:01:03.7]} 28... Rf6 {[%clk 0:01:37.3]} 29. Ng2 {[%clk 0:00:41.6]} 29...
fxg2 {[%clk 0:01:28.7]} 30. Kxg2 {[%clk 0:00:41.5]} 30... Rh6 {[%clk 0:01:28.9]}
31. Rh1 {[%clk 0:00:40.7]} 31... Rxh1 {[%clk 0:01:28.7]} 32. Rxh1 {[%clk
0:00:40.1]} 32... Qxh1+ {[%clk 0:01:28.6]} 0-1

[Event "*** Titled Tuesday Blitz"]
[Site "Chess.com"]
[Date "2020.05.26"]
[Round "5"]
[White "Thee-Chessboy"]
[Black "AcsinteMatei"]
[Result "1-0"]
[WhiteElo "2523"]
[BlackElo "2348"]
[TimeControl "180+1"]
[EndTime "10:54:33 PDT"]
[Termination "Thee-Chessboy won by resignation"]

1. d4 {[%clk 0:03:00.9]} 1... Nf6 {[%clk 0:02:58.3]} 2. c4 {[%clk 0:03:01]} 2...
e6 {[%clk 0:02:57.3]} 3. Nf3 {[%clk 0:03:01.6]} 3... Bb4+ {[%clk 0:02:56.6]} 4.
Bd2 {[%clk 0:03:01.4]} 4... a5 {[%clk 0:02:56.3]} 5. g3 {[%clk 0:03:00.8]} 5...
O-O {[%clk 0:02:55.5]} 6. Bg2 {[%clk 0:03:01.1]} 6... d5 {[%clk 0:02:55.7]} 7.
O-O {[%clk 0:03:00.8]} 7... Be7 {[%clk 0:02:48.3]} 8. Qc2 {[%clk 0:02:59.4]}
8... b6 {[%clk 0:02:45.3]} 9. Ne5 {[%clk 0:02:57.2]} 9... Bb7 {[%clk 0:02:41.6]}
10. Nc3 {[%clk 0:02:57.4]} 10... Nbd7 {[%clk 0:02:36.8]} 11. Rad1 {[%clk
0:02:49.1]} 11... Qc8 {[%clk 0:02:21.7]} 12. Bf4 {[%clk 0:02:44.2]} 12... dxc4
{[%clk 0:02:15.9]} 13. Nxc4 {[%clk 0:02:37.2]} 13... Bxg2 {[%clk 0:02:14.8]} 14.
Kxg2 {[%clk 0:02:38.1]} 14... Qb7+ {[%clk 0:02:09.8]} 15. f3 {[%clk 0:02:37.9]}
15... c5 {[%clk 0:02:09.6]} 16. dxc5 {[%clk 0:02:36.7]} 16... Nxc5 {[%clk
0:02:03.7]} 17. Bd6 {[%clk 0:02:26.9]} 17... Rac8 {[%clk 0:01:59]} 18. Bxe7
{[%clk 0:02:25.6]} 18... Qxe7 {[%clk 0:01:58.3]} 19. Nxb6 {[%clk 0:02:25.6]}
19... Rc6 {[%clk 0:01:52.4]} 20. Nc4 {[%clk 0:02:25.3]} 20... Qa7 {[%clk
0:01:31]} 21. Ne5 {[%clk 0:02:03.7]} 21... Rc7 {[%clk 0:01:28.7]} 22. Nb5 {[%clk
0:02:02.6]} 22... Qb6 {[%clk 0:01:23.8]} 23. Nxc7 {[%clk 0:02:02.3]} 23... Qxc7
{[%clk 0:01:24.7]} 24. Nd3 {[%clk 0:02:02.4]} 24... Na6 {[%clk 0:01:08.4]} 25.
Qxc7 {[%clk 0:02:01.3]} 25... Nxc7 {[%clk 0:01:09.3]} 26. Rc1 {[%clk 0:02:00.4]}
26... Nb5 {[%clk 0:01:07.4]} 27. Rc5 {[%clk 0:01:58.3]} 27... Nd4 {[%clk
0:00:59.8]} 28. Kf2 {[%clk 0:01:57.9]} 28... h6 {[%clk 0:00:53.8]} 29. Rfc1
{[%clk 0:01:57.2]} 29... Kh7 {[%clk 0:00:53.1]} 30. Rc8 {[%clk 0:01:55.9]} 30...
Rxc8 {[%clk 0:00:51.9]} 31. Rxc8 {[%clk 0:01:56.8]} 31... Nd5 {[%clk 0:00:52.5]}
32. e4 {[%clk 0:01:52.3]} 32... Nb6 {[%clk 0:00:51.4]} 33. Rd8 {[%clk 0:01:50]}
33... Nc2 {[%clk 0:00:48]} 34. Rd6 {[%clk 0:01:40.4]} 34... Na4 {[%clk
0:00:46.6]} 35. Ra6 {[%clk 0:01:38.3]} 1-0

[Event "*** Titled Tuesday Blitz"]
[Site "Chess.com"]
[Date "2020.05.26"]
[Round "5"]
[White "ChronicUnhappiness"]
[Black "Quiet_Desperation"]
[Result "1-0"]
[WhiteElo "2283"]
[BlackElo "2195"]
[TimeControl "180+1"]
[EndTime "10:54:35 PDT"]
[Termination "ChronicUnhappiness won by resignation"]

1. c4 {[%clk 0:03:00.9]} 1... Nf6 {[%clk 0:02:55.2]} 2. Nf3 {[%clk 0:03:00]}
2... e6 {[%clk 0:02:55.2]} 3. Nc3 {[%clk 0:02:57]} 3... d5 {[%clk 0:02:53]} 4.
e3 {[%clk 0:02:57]} 4... Be7 {[%clk 0:02:52.7]} 5. b3 {[%clk 0:02:54.6]} 5...
O-O {[%clk 0:02:52.5]} 6. Bb2 {[%clk 0:02:54.7]} 6... Nc6 {[%clk 0:02:46.6]} 7.
d4 {[%clk 0:02:52.7]} 7... Bb4 {[%clk 0:02:44.2]} 8. a3 {[%clk 0:02:51.1]} 8...
Bxc3+ {[%clk 0:02:40.1]} 9. Bxc3 {[%clk 0:02:51.1]} 9... Ne4 {[%clk 0:02:40.5]}
10. Bb2 {[%clk 0:02:51.2]} 10... f5 {[%clk 0:02:40.7]} 11. Bd3 {[%clk
0:02:46.1]} 11... f4 {[%clk 0:02:41]} 12. O-O {[%clk 0:02:41.2]} 12... Bd7
{[%clk 0:02:38.4]} 13. Nd2 {[%clk 0:02:18.7]} 13... Nxd2 {[%clk 0:02:34.9]} 14.
Qxd2 {[%clk 0:02:16.9]} 14... f3 {[%clk 0:02:35.3]} 15. gxf3 {[%clk 0:01:35.8]}
15... Rxf3 {[%clk 0:02:24.2]} 16. Be2 {[%clk 0:01:24.4]} 16... Rh3 {[%clk
0:02:20.4]} 17. f4 {[%clk 0:01:21.2]} 17... Qh4 {[%clk 0:02:11.4]} 18. Rf2
{[%clk 0:01:12.5]} 18... Qh6 {[%clk 0:01:52.9]} 19. Rg2 {[%clk 0:01:07.2]} 19...
Rf8 {[%clk 0:01:48.2]} 20. Bg4 {[%clk 0:01:02]} 20... Rh4 {[%clk 0:01:46.5]} 21.
Kh1 {[%clk 0:00:49.9]} 21... Ne7 {[%clk 0:01:43.9]} 22. Rag1 {[%clk 0:00:48.2]}
22... dxc4 {[%clk 0:01:30.9]} 23. bxc4 {[%clk 0:00:45.6]} 23... Bc6 {[%clk
0:01:30.3]} 24. d5 {[%clk 0:00:45]} 24... exd5 {[%clk 0:01:30.5]} 25. Be6+
{[%clk 0:00:39.8]} 25... Kh8 {[%clk 0:01:29.2]} 26. Bxg7+ {[%clk 0:00:35.5]}
26... Qxg7 {[%clk 0:01:28]} 27. Rxg7 {[%clk 0:00:35.3]} 27... d4+ {[%clk
0:01:27.9]} 28. R1g2 {[%clk 0:00:31.5]} 1-0

[Event "*** Titled Tuesday Blitz"]
[Site "Chess.com"]
[Date "2020.05.26"]
[Round "5"]
[White "grzechu96"]
[Black "mishikomchedlishvili"]
[Result "0-1"]
[WhiteElo "2613"]
[BlackElo "2833"]
[TimeControl "180+1"]
[EndTime "10:54:41 PDT"]
[Termination "mishikomchedlishvili won by resignation"]

1. e4 {[%clk 0:03:00.9]} 1... c5 {[%clk 0:02:59]} 2. Nf3 {[%clk 0:03:01]} 2...
e6 {[%clk 0:02:58.4]} 3. b3 {[%clk 0:02:55.4]} 3... a6 {[%clk 0:02:56.2]} 4. Bb2
{[%clk 0:02:52.8]} 4... Nc6 {[%clk 0:02:56.1]} 5. c4 {[%clk 0:02:45.4]} 5... Qc7
{[%clk 0:02:54.9]} 6. g3 {[%clk 0:02:44.5]} 6... Nf6 {[%clk 0:02:54.1]} 7. e5
{[%clk 0:02:43.2]} 7... Ng4 {[%clk 0:02:52.8]} 8. Qe2 {[%clk 0:02:43.1]} 8... b6
{[%clk 0:02:48.9]} 9. Bg2 {[%clk 0:02:37.8]} 9... Bb7 {[%clk 0:02:48.9]} 10. O-O
{[%clk 0:02:38.2]} 10... Be7 {[%clk 0:02:48.4]} 11. h3 {[%clk 0:02:16.5]} 11...
Nh6 {[%clk 0:02:48.1]} 12. Nc3 {[%clk 0:02:09.4]} 12... Nf5 {[%clk 0:02:47.3]}
13. Ne4 {[%clk 0:01:46.7]} 13... O-O {[%clk 0:02:44.4]} 14. Nf6+ {[%clk
0:01:23.7]} 14... Kh8 {[%clk 0:02:11.6]} 15. Ng5 {[%clk 0:00:56.1]} 15... h6
{[%clk 0:02:05]} 16. Qh5 {[%clk 0:00:56.2]} 16... Bxf6 {[%clk 0:02:02.5]} 17.
exf6 {[%clk 0:00:55.9]} 17... g6 {[%clk 0:02:02.4]} 18. Nxf7+ {[%clk 0:00:28.1]}
18... Rxf7 {[%clk 0:02:00.2]} 19. Qxg6 {[%clk 0:00:28.5]} 19... d6 {[%clk
0:01:45.7]} 20. g4 {[%clk 0:00:28.4]} 20... Rg8 {[%clk 0:01:42.5]} 21. Qh5
{[%clk 0:00:26.6]} 21... Rg5 {[%clk 0:01:39.9]} 22. Qxg5 {[%clk 0:00:05.4]}
22... hxg5 {[%clk 0:01:39.4]} 23. gxf5 {[%clk 0:00:05.9]} 23... e5 {[%clk
0:01:39.5]} 24. f4 {[%clk 0:00:03.5]} 24... gxf4 {[%clk 0:01:38.8]} 25. Rae1
{[%clk 0:00:03.4]} 25... Nd4 {[%clk 0:01:37]} 0-1

[Event "*** Titled Tuesday Blitz"]
[Site "Chess.com"]
[Date "2020.05.26"]
[Round "5"]
[White "gilbert_gm"]
[Black "ViktoriyaTarasova"]
[Result "1-0"]
[WhiteElo "2641"]
[BlackElo "2266"]
[TimeControl "180+1"]
[EndTime "10:54:41 PDT"]
[Termination "gilbert_gm won by resignation"]

1. e4 {[%clk 0:03:00.9]} 1... c5 {[%clk 0:02:58.5]} 2. Nf3 {[%clk 0:03:00.4]}
2... d6 {[%clk 0:02:58.3]} 3. d4 {[%clk 0:03:00.1]} 3... cxd4 {[%clk 0:02:58.4]}
4. Nxd4 {[%clk 0:03:01]} 4... Nf6 {[%clk 0:02:57.2]} 5. Nc3 {[%clk 0:03:00.4]}
5... a6 {[%clk 0:02:57.8]} 6. Bg5 {[%clk 0:02:59.7]} 6... e6 {[%clk 0:02:57.1]}
7. Qd2 {[%clk 0:02:59.4]} 7... Qb6 {[%clk 0:02:56.6]} 8. O-O-O {[%clk
0:02:56.1]} 8... Be7 {[%clk 0:02:50.8]} 9. f3 {[%clk 0:02:55.7]} 9... Qc7 {[%clk
0:02:49.9]} 10. g4 {[%clk 0:02:54]} 10... Nbd7 {[%clk 0:02:46.8]} 11. h4 {[%clk
0:02:52.7]} 11... b5 {[%clk 0:02:46.4]} 12. h5 {[%clk 0:02:48.8]} 12... h6
{[%clk 0:02:44.8]} 13. Be3 {[%clk 0:02:48.8]} 13... Nb6 {[%clk 0:02:41.4]} 14.
a3 {[%clk 0:02:37.4]} 14... Nc4 {[%clk 0:02:39.1]} 15. Bxc4 {[%clk 0:02:37]}
15... Qxc4 {[%clk 0:02:39.6]} 16. Nb3 {[%clk 0:02:31]} 16... a5 {[%clk
0:02:35.6]} 17. Qd4 {[%clk 0:02:21.6]} 17... Qc6 {[%clk 0:02:32.5]} 18. Qb6
{[%clk 0:02:15.9]} 18... Qxb6 {[%clk 0:02:20.1]} 19. Bxb6 {[%clk 0:02:16.8]}
19... b4 {[%clk 0:02:20]} 20. Nb5 {[%clk 0:02:11.9]} 20... O-O {[%clk
0:02:08.5]} 21. Nxd6 {[%clk 0:02:08.1]} 21... bxa3 {[%clk 0:01:56.9]} 22. bxa3
{[%clk 0:02:06.8]} 22... a4 {[%clk 0:01:56.1]} 23. Nc5 {[%clk 0:02:06]} 23...
Ne8 {[%clk 0:01:43.4]} 24. Nxc8 {[%clk 0:01:59.3]} 24... Rxc8 {[%clk 0:01:41.5]}
25. Nd7 {[%clk 0:01:59.9]} 25... Bxa3+ {[%clk 0:01:34.4]} 26. Kb1 {[%clk
0:02:00.3]} 26... Nf6 {[%clk 0:01:26.1]} 27. Nxf8 {[%clk 0:01:59.9]} 27... Rb8
{[%clk 0:01:00.9]} 28. Nxe6 {[%clk 0:01:28.8]} 28... Rxb6+ {[%clk 0:00:54.7]}
29. Ka2 {[%clk 0:01:28.7]} 29... Be7 {[%clk 0:00:48.6]} 30. Nd4 {[%clk
0:01:26.6]} 30... a3 {[%clk 0:00:44.2]} 31. Rb1 {[%clk 0:01:24.4]} 31... Rd6
{[%clk 0:00:44]} 32. Nf5 {[%clk 0:01:20.1]} 32... Rd7 {[%clk 0:00:42.9]} 33.
Rhd1 {[%clk 0:01:17.8]} 1-0

[Event "*** Titled Tuesday Blitz"]
[Site "Chess.com"]
[Date "2020.05.26"]
[Round "5"]
[White "SARGISMV"]
[Black "RobPeresian"]
[Result "1/2-1/2"]
[WhiteElo "2428"]
[BlackElo "2315"]
[TimeControl "180+1"]
[EndTime "10:54:42 PDT"]
[Termination "Game drawn by agreement"]

1. d4 {[%clk 0:03:00.9]} 1... d5 {[%clk 0:02:59.7]} 2. c4 {[%clk 0:03:00.8]}
2... c6 {[%clk 0:02:59.7]} 3. Nc3 {[%clk 0:03:01.3]} 3... Nf6 {[%clk 0:02:57.3]}
4. e3 {[%clk 0:03:01.5]} 4... a6 {[%clk 0:02:53.4]} 5. Nf3 {[%clk 0:03:02.4]}
5... Bg4 {[%clk 0:02:51.3]} 6. Qb3 {[%clk 0:03:00.2]} 6... Ra7 {[%clk 0:02:50]}
7. Ne5 {[%clk 0:03:00]} 7... Bf5 {[%clk 0:02:48.5]} 8. a4 {[%clk 0:02:56.3]}
8... e6 {[%clk 0:02:47.8]} 9. a5 {[%clk 0:02:54.9]} 9... Nbd7 {[%clk 0:02:45.1]}
10. Nxd7 {[%clk 0:02:44.4]} 10... Nxd7 {[%clk 0:02:42.1]} 11. Bd2 {[%clk
0:02:45.3]} 11... Bd6 {[%clk 0:02:39.7]} 12. Be2 {[%clk 0:02:44]} 12... O-O
{[%clk 0:02:39.8]} 13. O-O {[%clk 0:02:43.3]} 13... Nf6 {[%clk 0:02:29.4]} 14.
h3 {[%clk 0:02:43]} 14... h6 {[%clk 0:02:29.1]} 15. Rfd1 {[%clk 0:02:39.6]}
15... Qe7 {[%clk 0:02:25.6]} 16. Be1 {[%clk 0:02:31.5]} 16... Raa8 {[%clk
0:02:16.1]} 17. Bd3 {[%clk 0:02:18.2]} 17... Bxd3 {[%clk 0:02:13.3]} 18. Rxd3
{[%clk 0:02:19.1]} 18... dxc4 {[%clk 0:02:10.8]} 19. Qxc4 {[%clk 0:02:18.5]}
19... e5 {[%clk 0:02:10]} 20. dxe5 {[%clk 0:01:58.7]} 20... Qxe5 {[%clk
0:02:06.6]} 21. f4 {[%clk 0:01:57.7]} 21... Qe7 {[%clk 0:02:03]} 22. Rad1 {[%clk
0:01:57.4]} 22... Rfd8 {[%clk 0:01:55.4]} 23. Bg3 {[%clk 0:01:41.2]} 23... Bc7
{[%clk 0:01:50.2]} 24. b4 {[%clk 0:01:32.9]} 24... Rxd3 {[%clk 0:01:42.4]} 25.
Rxd3 {[%clk 0:01:33.8]} 25... Rd8 {[%clk 0:01:41.9]} 26. Rxd8+ {[%clk 0:01:33]}
26... Qxd8 {[%clk 0:01:40.9]} 27. Bh4 {[%clk 0:01:28.4]} 27... Qd6 {[%clk
0:01:17.2]} 28. Bxf6 {[%clk 0:01:25.4]} 28... Qxf6 {[%clk 0:01:16.8]} 29. Ne4
{[%clk 0:01:23.7]} 29... Qe7 {[%clk 0:01:07.8]} 30. Kf2 {[%clk 0:01:22]} 30...
Bd6 {[%clk 0:01:06.3]} 31. Nc5 {[%clk 0:01:05.8]} 31... Bxc5 {[%clk 0:01:02.5]}
32. Qxc5 {[%clk 0:01:06.1]} 32... Qd7 {[%clk 0:00:59.3]} 1/2-1/2

[Event "*** Titled Tuesday Blitz"]
[Site "Chess.com"]
[Date "2020.05.26"]
[Round "5"]
[White "heartofatiger"]
[Black "mattcolins2025"]
[Result "1-0"]
[WhiteElo "2499"]
[BlackElo "2295"]
[TimeControl "180+1"]
[EndTime "10:54:44 PDT"]
[Termination "heartofatiger won by resignation"]

1. Nf3 {[%clk 0:03:00.9]} 1... Nf6 {[%clk 0:02:59.2]} 2. c4 {[%clk 0:02:59.6]}
2... g6 {[%clk 0:02:59.4]} 3. g3 {[%clk 0:02:59.6]} 3... Bg7 {[%clk 0:02:59.8]}
4. Bg2 {[%clk 0:03:00.3]} 4... O-O {[%clk 0:03:00.2]} 5. O-O {[%clk 0:03:00.8]}
5... d6 {[%clk 0:03:00.7]} 6. Nc3 {[%clk 0:02:59.3]} 6... c6 {[%clk 0:03:01]} 7.
b3 {[%clk 0:02:56]} 7... e5 {[%clk 0:02:58.8]} 8. Bb2 {[%clk 0:02:54.4]} 8... a5
{[%clk 0:02:54.5]} 9. d3 {[%clk 0:02:52]} 9... Na6 {[%clk 0:02:38.6]} 10. a3
{[%clk 0:02:51.3]} 10... Bd7 {[%clk 0:02:34.3]} 11. Nd2 {[%clk 0:02:50.7]} 11...
Qb6 {[%clk 0:02:26]} 12. Qc2 {[%clk 0:02:48.5]} 12... Nc5 {[%clk 0:02:25.2]} 13.
Rab1 {[%clk 0:02:47.8]} 13... Ne6 {[%clk 0:02:24.2]} 14. e3 {[%clk 0:02:45.8]}
14... Nc5 {[%clk 0:02:20.4]} 15. Ba1 {[%clk 0:02:44.1]} 15... Bf5 {[%clk
0:02:17.3]} 16. e4 {[%clk 0:02:41]} 16... Bd7 {[%clk 0:02:16.8]} 17. b4 {[%clk
0:02:40.8]} 17... axb4 {[%clk 0:02:16.3]} 18. axb4 {[%clk 0:02:40.5]} 18... Ne6
{[%clk 0:02:16.4]} 19. Ne2 {[%clk 0:02:30.8]} 19... Ng5 {[%clk 0:02:13.9]} 20.
c5 {[%clk 0:02:22.3]} 20... dxc5 {[%clk 0:02:10.6]} 21. bxc5 {[%clk 0:02:21.3]}
21... Qc7 {[%clk 0:02:07.6]} 22. Nc4 {[%clk 0:02:19.4]} 22... Nh3+ {[%clk
0:02:04.9]} 23. Kh1 {[%clk 0:02:17.3]} 23... Ne8 {[%clk 0:01:54.5]} 24. Bc3
{[%clk 0:02:00.9]} 24... Ng5 {[%clk 0:01:50.1]} 25. Qb2 {[%clk 0:01:56.8]} 25...
Bh3 {[%clk 0:01:39.9]} 26. Qxb7 {[%clk 0:01:51.8]} 26... Qd8 {[%clk 0:01:29.6]}
27. Nxe5 {[%clk 0:01:41.3]} 27... Bxe5 {[%clk 0:01:25.4]} 28. Bxe5 {[%clk
0:01:38.1]} 28... Ra2 {[%clk 0:01:25.4]} 29. Nf4 {[%clk 0:01:31.2]} 29... Bxg2+
{[%clk 0:01:24]} 30. Kxg2 {[%clk 0:01:30.9]} 30... Ne6 {[%clk 0:01:11.3]} 31.
Nxe6 {[%clk 0:01:25.7]} 31... fxe6 {[%clk 0:01:10.3]} 32. Qb3 {[%clk 0:01:24.9]}
32... Rd2 {[%clk 0:01:06.4]} 33. Qxe6+ {[%clk 0:01:23.2]} 33... Rf7 {[%clk
0:01:06.5]} 34. d4 {[%clk 0:01:21.5]} 34... Ng7 {[%clk 0:01:03.1]} 35. Qxc6
{[%clk 0:01:10.5]} 35... Qg5 {[%clk 0:00:56.5]} 36. Rb8+ {[%clk 0:01:06]} 36...
Rf8 {[%clk 0:00:56.5]} 37. Qd5+ {[%clk 0:01:05.9]} 1-0